bitfinex-derivatives/quotes_ETHF0:USTF0_20250427
["timestamp","ask_amount","ask_price","bid_price","bid_amount"]
[1745792206496,6.01486,1793.2,1793.1,3.95]
[1745792206901,1.11505,1793.1,1792.9,3.949]
[1745792207103,1.6936,1793.0,1792.9,3.949]
[1745792207407,7.74,1793.0,1792.8,3.949]
[1745792207607,7.74,1793.0,1792.7,1.11526]
[1745792207608,1.785,1792.9,1792.5,62.617]
[1745792207814,1.6936,1792.8,1792.6,5.06431]
[1745792208302,6.01662,1792.8,1792.6,3.949]
[1745792208698,4.9014,1792.8,1792.6,5.06433]
[1745792209101,4.9014,1792.8,1792.6,3.949]
[1745792209504,6.01667,1792.8,1792.6,3.949]
[1745792209808,4.9014,1792.8,1792.6,5.06433]
[1745792210411,4.9014,1792.8,1792.7,1.11527]
[1745792211603,4.9014,1792.8,1792.6,5.06432]
[1745792211816,4.9014,1792.8,1792.7,1.11527]
[1745792212215,4.9014,1792.8,1792.6,5.06429]
[1745792212711,4.9014,1792.8,1792.7,1.11527]
[1745792214606,1.6936,1792.8,1792.7,1.11527]
[1745792214802,1.6936,1792.8,1792.7,2.90297]
[1745792216612,1.6936,1792.8,1792.7,1.11527]
[1745792217010,1.6936,1792.8,1792.6,5.06432]
[1745792217212,6.01663,1792.8,1792.6,3.949]
[1745792217509,1.6936,1792.8,1792.7,1.11527]
[1745792218711,1.6936,1792.8,1792.7,2.80507]
[1745792219111,1.6687,1793.3,1792.8,2.78796]
[1745792219312,3.4585,1793.3,1793.2,1.11496]
[1745792219911,6.6663,1793.3,1792.9,10.5972]
[1745792220224,6.6663,1793.3,1793.0,1.11503]
[1745792220225,3.5771,1793.2,1793.0,1.11503]
[1745792220412,1.7898,1793.1,1793.0,1.11503]
[1745792220716,9.0958,1793.6,1793.3,1.11485]
[1745792221012,3.4585,1793.5,1793.4,1.11484]
[1745792221217,3.4585,1793.5,1793.3,5.04986]
[1745792221411,4.8965,1793.4,1793.3,3.935]
[1745792222522,4.8965,1793.4,1793.3,5.0499]
[1745792222810,6.01134,1793.4,1793.3,3.935]
[1745792223207,4.8965,1793.4,1793.3,3.935]
[1745792223813,4.8965,1793.4,1793.3,5.0499]
[1745792224212,4.8965,1793.4,1793.3,3.935]
[1745792224416,4.8965,1793.4,1793.3,5.0499]
[1745792224816,4.8965,1793.4,1793.3,3.935]
[1745792225018,6.01134,1793.4,1793.3,3.935]
[1745792225325,6.01134,1793.4,1793.3,5.3287]
[1745792225326,4.8965,1793.4,1793.3,5.3287]
[1745792226414,1.6887,1793.4,1793.3,5.3287]
[1745792226615,4.8965,1793.4,1793.3,5.3287]
[1745792228810,6.01134,1793.4,1793.3,4.2138]
[1745792229222,6.01134,1793.4,1793.0,3.934]
[1745792229223,1.115,1793.2,1793.0,3.934]
[1745792229520,6.6518,1793.1,1793.0,5.04909]
[1745792229711,9.55282,1793.1,1793.0,3.934]
[1745792229911,8.4378,1793.1,1793.0,5.04909]
[1745792230707,13.4378,1793.1,1791.9,3.61630984]
[1745792230906,4.32326,1792.4,1791.9,2.90085]
[1745792231222,3.2078,1792.4,1792.0,1.11569]
[1745792231514,6.5325,1792.3,1792.0,1.1157]
[1745792232019,6.5325,1792.3,1791.9,6.83484]
[1745792232218,7.64802,1792.3,1791.9,6.83484]
[1745792232417,3.2078,1792.1,1791.5,7.33717771]
[1745792232614,1.11585,1791.8,1791.5,7.33717771]
[1745792232915,5.9653,1791.7,1791.5,7.33717771]
[1745792233112,2.82546,1791.6,1791.5,7.33717771]
[1745792233318,5.0342,1791.6,1791.5,7.33717771]
[1745792233520,6.15016,1791.6,1791.5,7.33717771]
[1745792234209,6.15016,1791.6,1791.3,5.05012]
[1745792234415,3.2078,1791.5,1791.3,5.05012]
[1745792234728,1.752,1791.4,1791.3,5.05012]
[1745792236122,1.752,1791.4,1791.3,3.934]
[1745792236715,1.752,1791.4,1791.3,5.7505]
[1745792236930,1.752,1791.4,1791.3,6.86665]
[1745792237115,1.752,1791.4,1791.3,5.7505]
[1745792237315,1.752,1791.4,1791.3,6.86665]
[1745792237626,3.2078,1791.5,1791.4,1.11608]
[1745792237819,3.2078,1791.7,1791.6,1.11596]
[1745792238328,3.2078,1791.7,1791.5,1.11598]
[1745792239627,3.2078,1791.7,1791.6,1.11596]
[1745792240022,3.2078,1791.7,1791.5,1.11597]
[1745792240713,3.2078,1791.7,1791.3,3.934]
[1745792240920,1.7552,1791.6,1791.3,3.934]
[1745792241221,1.7552,1791.6,1791.5,1.11602]
[1745792242231,3.2078,1791.7,1791.6,1.11596]
[1745792244731,1.7552,1791.8,1791.7,1.1159]
[1745792244924,4.963,1791.8,1791.7,1.1159]
[1745792245729,1.7552,1791.8,1791.7,1.1159]
[1745792245930,4.8799,1792.0,1791.6,6.72587]
[1745792246132,1.7157,1791.9,1791.8,1.11583]
[1745792247233,1.7157,1791.9,1791.6,3.936]
[1745792247433,4.32365,1791.8,1791.6,3.936]
[1745792247629,1.7157,1791.7,1791.6,5.05196]
[1745792248134,4.8799,1792.0,1791.8,1.11579]
[1745792248335,1.7157,1791.9,1791.7,1.11587]
[1745792248527,1.7157,1791.9,1791.6,3.936]
[1745792248720,1.7157,1791.9,1791.8,1.11583]
[1745792250423,1.7157,1791.9,1791.4,0.2791]
[1745792250636,3.2078,1791.6,1791.4,0.2791]
[1745792250848,1.7091,1791.5,1791.4,0.2791]
[1745792251024,1.7091,1791.5,1791.4,1.11608]
[1745792251335,1.7091,1791.5,1791.2,7.1658]
[1745792251537,3.5116,1791.5,1791.2,8.28198]
[1745792251721,4.62766,1791.5,1791.2,8.28198]
[1745792251925,4.62766,1791.5,1791.2,8.282]
[1745792252228,4.62766,1791.5,1791.2,8.56108]
[1745792252635,4.62766,1791.5,1791.2,7.4449]
[1745792252830,4.32395,1791.3,1791.2,0.2791]
[1745792253233,4.32395,1791.3,1790.9,5.07436]
[1745792253425,3.2078,1791.1,1790.9,5.07436]
[1745792253632,1.7401,1791.0,1790.6,5.6682]
[1745792253938,3.2078,1790.8,1790.6,1.11655]
[1745792254128,1.7401,1790.7,1790.5,1.11662]
[1745792254333,1.7401,1790.7,1790.3,3.958]
[1745792254529,1.7401,1790.7,1790.6,1.11658]
[1745792255933,1.7401,1790.7,1790.5,1.39582]
[1745792256139,1.7401,1790.7,1790.6,1.7141]
[1745792256336,1.7401,1790.7,1790.6,2.83068]
[1745792256924,1.7401,1790.7,1790.6,1.7141]
[1745792257640,1.7401,1790.7,1790.6,1.11658]
[1745792262443,1.7611,1791.1,1790.6,11.7504]
[1745792262740,1.6508,1791.0,1790.9,1.11636]
[1745792264344,1.6508,1791.0,1790.9,5.07636]
[1745792265044,4.9235,1791.2,1791.1,1.11627]
[1745792265746,11.7053,1791.2,1790.7,1.1165]
[1745792265944,3.2078,1791.0,1790.8,1.11645]
[1745792266245,1.7818,1790.9,1790.8,1.11645]
[1745792266848,3.4848,1790.9,1790.8,1.11645]
[1745792267347,3.4848,1790.9,1790.6,3.96]
[1745792267348,3.4848,1790.9,1790.7,1.11647]
[1745792267738,3.4848,1790.9,1790.8,1.11646]
[1745792267946,3.4848,1790.9,1790.6,5.07655]
[1745792268147,3.4848,1790.9,1790.7,1.11651]
[1745792268761,3.4848,1790.9,1790.7,1.39571]
[1745792269242,3.4848,1790.9,1790.8,1.11646]
[1745792270245,1.7818,1790.9,1790.8,1.11646]
[1745792270442,1.7157,1791.2,1791.1,1.11627]
[1745792270654,3.2078,1791.3,1791.2,1.11621]
[1745792271949,3.462,1791.4,1791.2,1.11621]
[1745792272249,6.6698,1791.4,1791.2,1.11621]
[1745792273552,6.6698,1791.4,1791.1,1.6804]
[1745792273553,6.6698,1791.4,1791.3,1.11615]
[1745792273850,6.6698,1791.4,1791.2,1.11617]
[1745792274745,6.6698,1791.4,1791.3,1.11615]
[1745792277354,6.6698,1791.4,1791.1,1.6804]
[1745792277545,6.6698,1791.4,1791.2,1.11618]
[1745792278554,6.6698,1791.4,1791.3,1.11615]
[1745792283650,6.6698,1791.4,1791.2,1.7056]
[1745792283945,1.7758,1791.3,1791.2,3.10091]
[1745792284260,1.7758,1791.3,1791.2,1.39531]
[1745792284464,3.4275,1791.3,1791.2,1.39531]
[1745792286261,4.54365,1791.3,1791.2,0.2791]
[1745792286649,10.43165,1791.3,1791.2,0.2791]
[1745792287255,1.11635,1791.0,1790.7,1.1165]
[1745792287460,3.2078,1790.8,1790.7,1.1165]
[1745792287852,4.934,1790.8,1790.7,1.1165]
[1745792288061,3.2078,1790.8,1790.7,2.7777]
[1745792288464,1.7262,1791.1,1791.0,1.11633]
[1745792288761,1.7262,1791.1,1790.9,5.01935]
[1745792288959,3.2078,1791.0,1790.9,3.903]
[1745792289155,4.9745,1791.0,1790.9,3.903]
[1745792289462,4.9745,1791.0,1790.7,6.71896]
[1745792289671,1.8222,1790.9,1790.7,6.71896]
[1745792289965,1.8222,1790.9,1790.8,1.11646]
[1745792290161,1.8222,1790.9,1790.7,5.6025]
[1745792290365,1.8222,1790.9,1790.7,5.0195]
[1745792290556,1.6649,1790.8,1790.7,5.0195]
[1745792291058,1.6649,1790.8,1790.7,6.719]
[1745792292962,1.6649,1790.8,1790.7,5.0195]
[1745792296268,1.8222,1790.9,1790.8,1.11646]
[1745792296570,1.7989,1791.1,1791.0,1.11633]
[1745792297063,1.7989,1791.1,1791.0,5.01933]
[1745792297269,3.5502,1791.2,1791.1,1.11627]
[1745792297568,3.5502,1791.2,1791.1,2.87657]
[1745792297875,1.7747,1791.2,1791.1,2.87657]
[1745792298464,1.7989,1791.3,1791.2,1.11621]
[1745792298667,1.7989,1791.3,1791.2,2.79891]
[1745792301668,1.7578,1791.5,1791.2,1.6827]
[1745792301875,3.4263,1791.5,1791.4,1.11608]
[1745792302872,3.2078,1791.6,1791.5,1.11602]
[1745792303671,1.7814,1791.8,1791.7,1.1159]
[1745792304374,1.7814,1791.8,1791.7,2.8467]
[1745792305074,1.7447,1791.9,1791.8,1.11583]
[1745792305275,1.7814,1792.0,1791.9,1.11577]
[1745792305480,1.7814,1792.0,1791.9,5.01777]
[1745792308389,1.7814,1792.0,1791.9,6.72757]
[1745792309693,3.5096,1792.2,1792.1,1.11565]
[1745792309889,5.2342,1792.2,1792.1,1.11565]
[1745792310593,3.5577,1792.6,1792.5,1.1154]
[1745792310792,5.2823,1792.6,1792.5,4.9644]
[1745792311289,3.2078,1792.8,1792.6,1.11528]
[1745792311487,3.2078,1792.8,1792.5,5.24328]
[1745792311682,1.7246,1792.7,1792.6,1.11534]
[1745792312187,1.7246,1792.7,1792.5,5.24324]
[1745792312386,1.7246,1792.7,1792.6,1.11534]
[1745792315092,1.7246,1792.7,1792.6,2.83704]
[1745792316793,1.7246,1792.7,1792.5,0.2789]
[1745792317088,4.32314,1792.6,1792.5,0.2789]
[1745792317489,10.0042,1792.6,1792.1,3.848]
[1745792317689,3.2078,1792.3,1792.1,4.96364]
[1745792317882,1.7964,1792.2,1792.1,4.96364]
[1745792318093,1.7964,1792.2,1792.1,3.848]
[1745792318491,1.7964,1792.2,1792.1,4.96365]
[1745792319488,2.91198,1792.2,1792.1,3.848]
[1745792320488,1.7964,1792.2,1792.1,3.848]
[1745792320693,3.592,1792.2,1792.1,3.848]
[1745792322092,3.592,1792.2,1792.1,4.96365]
[1745792322294,3.592,1792.2,1792.1,3.848]
[1745792323504,4.70758,1792.2,1792.1,3.848]
[1745792323796,3.592,1792.2,1792.1,3.848]
[1745792325988,3.592,1792.2,1792.1,4.96365]
[1745792327393,3.592,1792.2,1792.1,3.848]
[1745792329694,3.592,1792.2,1792.1,4.96365]
[1745792330095,1.7964,1792.2,1792.1,4.96365]
[1745792330296,3.2078,1792.3,1792.2,1.11558]
[1745792330597,3.2078,1792.3,1792.2,2.85608]
[1745792330902,3.2078,1792.3,1792.2,1.7405]
[1745792331201,3.2078,1792.3,1792.1,3.848]
[1745792331202,4.9497,1792.3,1792.1,3.848]
[1745792331396,1.7562,1792.2,1792.1,3.848]
[1745792334002,1.7562,1792.2,1792.1,4.96365]
[1745792334201,1.7562,1792.2,1792.1,3.848]
[1745792334511,1.7562,1792.2,1792.1,4.96365]
[1745792338605,1.7562,1792.2,1792.1,3.848]
[1745792339199,1.7562,1792.2,1792.1,4.96365]
[1745792342404,2.50103449,1792.5,1792.1,8.848]
[1745792342602,9.2701,1792.9,1792.4,5.99645]
[1745792342805,3.2078,1793.2,1793.1,1.11502]
[1745792343109,3.2078,1793.2,1792.9,3.8]
[1745792343309,1.6847,1793.1,1793.0,3.10854]
[1745792343503,1.6847,1793.1,1793.0,3.10859]
[1745792346223,1.794,1793.3,1793.2,1.11496]
[1745792347512,1.794,1793.3,1793.0,1.39386]
[1745792347714,1.7318,1793.2,1793.0,1.39386]
[1745792347908,1.7318,1793.2,1793.1,1.11502]
[1745792348908,4.9396,1793.2,1793.1,1.11502]
[1745792349111,15.8276,1793.2,1793.0,0.2788]
[1745792349612,16.94256,1793.2,1793.0,1.39387]
[1745792349810,16.94258,1793.2,1793.0,1.39387]
[1745792350008,15.8276,1793.2,1793.0,1.39387]
[1745792350209,15.8276,1793.2,1793.1,1.11502]
[1745792351007,10.8276,1793.2,1793.1,1.11502]
[1745792353008,4.9396,1793.2,1793.1,1.11502]
[1745792360421,3.2078,1793.2,1793.1,1.11502]
[1745792360920,3.2078,1793.2,1793.1,2.83542]
[1745792361623,9.0958,1793.7,1793.3,1.1149]
[1745792361923,1.684,1793.6,1793.5,1.11478]
[1745792364020,1.684,1793.6,1793.5,2.82768]
[1745792364716,5.888,1793.9,1793.5,8.7187]
[1745792364918,5.888,1793.9,1793.8,1.11459]
[1745792365117,9.3234,1794.1,1793.9,1.11448]
[1745792365323,9.3234,1794.1,1794.0,1.11447]
[1745792365722,9.3234,1794.1,1793.9,1.11448]
[1745792366020,9.3234,1794.1,1794.0,1.11447]
[1745792366223,9.3234,1794.1,1793.9,1.11449]
[1745792366423,12.5312,1794.1,1793.8,1.11456]
[1745792366618,1.11451,1794.0,1793.7,3.4865]
[1745792366926,13.64565,1794.1,1793.8,1.11459]
[1745792367124,13.64565,1794.1,1793.9,1.11452]
[1745792367620,13.64565,1794.1,1794.0,1.11447]
[1745792367826,12.5312,1794.1,1794.0,1.11447]
[1745792368123,18.6456,1794.1,1793.9,1.11448]
[1745792368322,2.90427,1794.0,1793.9,1.11448]
[1745792368929,1.7898,1794.0,1793.9,1.11448]
[1745792369317,2.90427,1794.0,1793.9,1.11448]
[1745792371326,1.7898,1794.0,1793.7,0.2787]
[1745792371528,1.7219,1793.9,1793.8,1.11459]
[1745792372730,4.9297,1793.9,1793.8,1.11459]
[1745792372927,4.9297,1793.9,1793.7,0.2787]
[1745792372928,1.11459,1793.8,1793.7,0.2787]
[1745792373143,2.83649,1793.8,1793.7,0.2787]
[1745792373832,7.83649,1793.8,1793.7,0.2787]
[1745792374327,2.83649,1793.8,1793.7,1.39335]
[1745792375626,1.7219,1793.8,1793.7,1.39335]
[1745792376220,2.8078,1793.9,1793.8,1.11459]
[1745792376423,4.4504,1793.9,1793.8,2.93719]
[1745792376628,1.6426,1793.9,1793.8,2.93719]
[1745792379834,12.5312,1794.1,1794.0,1.11447]
[1745792380237,12.5312,1794.1,1794.0,1.39317]
[1745792380731,6.6432,1794.1,1794.0,1.39317]
[1745792381130,8.3192,1794.1,1794.0,1.39317]
[1745792381333,8.3192,1794.1,1794.0,3.21017]
[1745792381534,4.951,1794.1,1794.0,3.21017]
[1745792382027,1.7432,1794.1,1794.0,3.21017]
[1745792382225,7.564,1794.3,1794.2,1.11434]
[1745792382427,1.676,1794.3,1794.2,1.11434]
[1745792382827,1.676,1794.3,1794.2,2.93374]
[1745792383034,9.2206,1794.4,1794.3,1.11428]
[1745792383233,10.8433,1794.7,1794.3,1.8194]
[1745792383439,2.86161,1794.6,1794.4,1.11418]
[1745792383627,1.7475,1794.5,1794.4,1.11418]
[1745792385135,12.3976,1794.7,1794.6,1.11409]
[1745792385636,13.51163,1794.7,1794.6,1.11409]
[1745792385843,14.0425,1794.7,1794.6,1.11409]
[1745792386434,15.15658,1794.7,1794.5,2.92013]
[1745792386738,15.15658,1794.7,1794.6,1.11409]
[1745792386947,13.51168,1794.7,1794.6,1.11409]
[1745792387341,13.51168,1794.7,1794.5,2.92012]
[1745792387645,13.51168,1794.7,1794.3,3.797]
[1745792387646,12.3976,1794.7,1794.3,3.797]
[1745792387940,4.32199,1794.5,1794.3,4.91123]
[1745792388434,3.2078,1794.5,1794.3,4.91123]
[1745792388642,1.11422,1794.4,1794.2,1.11429]
[1745792388836,1.8162,1794.3,1794.2,1.11429]
[1745792389032,1.8162,1794.3,1794.2,2.86179]
[1745792389540,3.2078,1794.5,1794.2,1.7475]
[1745792389739,5.024,1794.5,1794.4,1.11422]
[1745792389941,6.13817,1794.5,1794.3,2.86173]
[1745792390836,5.024,1794.5,1794.3,1.7475]
[1745792391044,1.11423,1794.4,1794.2,1.1143]
[1745792391342,2.9304,1794.5,1794.3,1.11428]
[1745792391542,2.9304,1794.5,1794.4,1.11422]
[1745792392335,1.8162,1794.5,1794.4,1.11422]
[1745792393439,5.888,1794.6,1794.5,1.11415]
[1745792393941,4.8594,1794.7,1794.6,1.11409]
[1745792395033,5.97347,1794.7,1794.5,1.6863]
[1745792395743,5.98187872,1794.7,1794.6,1.11409]
[1745792398037,0.00840872,1794.7,1794.6,1.11409]
[1745792398540,0.00840872,1794.7,1794.6,2.87659]
[1745792398938,0.00840872,1794.7,1794.6,6.67259]
[1745792400661,0.00840872,1794.7,1794.6,6.95119]
[1745792401845,0.00840872,1794.7,1794.6,5.8371]
[1745792402045,0.00840872,1794.7,1794.6,6.95119]
[1745792402547,0.00840872,1794.7,1794.6,5.8371]
[1745792402751,0.00840872,1794.7,1794.6,6.95119]
[1745792402939,0.00840872,1794.7,1794.6,5.8371]
[1745792403134,7.01043872,1794.7,1794.6,0.2786]
[1745792404750,7.01043872,1794.7,1794.6,1.39269]
[1745792405139,7.01043872,1794.7,1794.6,0.2786]
[1745792405358,5.89640872,1794.7,1794.6,0.2786]
[1745792405546,5.89640872,1794.7,1794.6,1.39269]
[1745792405745,7.01043872,1794.7,1794.6,0.2786]
[1745792406448,8.70893872,1794.7,1794.6,0.2786]
[1745792411849,8.70893872,1794.7,1794.6,1.39269]
[1745792412448,8.70893872,1794.7,1794.6,0.2786]
[1745792414455,1.11428,1794.3,1794.1,6.13629]
[1745792414659,3.2078,1794.5,1794.2,1.11434]
[1745792414955,1.11427,1794.4,1794.2,1.11434]
[1745792415153,1.11428,1794.3,1794.2,1.11434]
[1745792415573,2.83796,1794.4,1794.3,1.11428]
[1745792415753,2.83796,1794.4,1794.2,2.8665]
[1745792415954,2.83798,1794.3,1794.2,1.1143]
[1745792416561,1.7237,1794.3,1794.2,1.1143]
[1745792418159,6.04208,1794.5,1794.3,1.11426]
[1745792418457,7.74397,1794.5,1794.3,1.11424]
[1745792418666,7.74397,1794.5,1794.4,1.7672]
[1745792421159,7.74397,1794.5,1794.4,2.88142]
[1745792421656,7.74397,1794.5,1794.4,1.7672]
[1745792422159,7.74397,1794.5,1794.4,2.88142]
[1745792422359,7.74397,1794.5,1794.4,1.7672]
[1745792423761,1.11428,1794.3,1794.2,2.91339]
[1745792423954,1.11428,1794.3,1794.2,4.63929]
[1745792424553,1.7118,1794.4,1794.2,4.63929]
[1745792424761,1.11428,1794.3,1794.2,1.7259]
[1745792426251,8.71407,1794.4,1794.2,2.84024]
[1745792426860,2.91648,1794.3,1794.2,1.7259]
[1745792427760,2.91648,1794.3,1794.1,4.32216]
[1745792427961,1.8022,1794.2,1794.1,6.10386]
[1745792429556,1.11429,1794.3,1794.1,6.10386]
[1745792429754,1.1143,1794.3,1794.1,6.10386]
[1745792429950,2.8941,1794.3,1794.1,6.10386]
[1745792430959,2.8941,1794.3,1794.1,6.1039]
[1745792431159,1.7798,1794.2,1794.1,6.1039]
[1745792432059,2.89414,1794.2,1794.1,4.9895]
[1745792432259,2.78602,1794.1,1793.8,3.2078]
[1745792432457,1.11459,1793.8,1793.6,4.32249]
[1745792432753,1.11465,1793.7,1793.6,3.2078]
[1745792432960,3.4165,1793.8,1793.6,4.8916]
[1745792433267,4.53111,1793.8,1793.6,6.0063]
[1745792433451,4.53111,1793.8,1793.7,1.6838]
[1745792434061,3.4165,1793.8,1793.7,1.6838]
[1745792434363,4.53109,1793.8,1793.7,1.6838]
[1745792434663,3.4165,1793.8,1793.7,2.79845]
[1745792434853,4.53109,1793.8,1793.7,1.6838]
[1745792436159,4.53109,1793.8,1793.7,2.79845]
[1745792436360,4.53109,1793.8,1793.7,1.6838]
[1745792436564,4.53109,1793.8,1793.6,4.32246]
[1745792436764,4.54055,1793.7,1793.6,3.2078]
[1745792436956,3.4259,1793.7,1793.6,3.2078]
[1745792437155,3.4259,1793.7,1793.6,4.32251]
[1745792437355,3.4259,1793.7,1793.6,6.04881]
[1745792438056,4.54055,1793.7,1793.6,4.9341]
[1745792438456,10.42855,1793.7,1793.6,3.2078]
[1745792438749,1.11478,1793.5,1793.4,1.7012]
[1745792438956,2.91636,1793.6,1793.4,2.81602]
[1745792439154,2.91638,1793.5,1793.4,1.7012]
[1745792439663,1.8016,1793.5,1793.4,2.81604]
[1745792440869,1.8016,1793.5,1793.4,1.7012]
[1745792441366,1.8016,1793.5,1793.4,2.81604]
[1745792442768,1.8016,1793.5,1793.4,1.7012]
[1745792442967,2.91638,1793.5,1793.4,1.7012]
[1745792443164,2.91638,1793.5,1793.2,6.56492]
[1745792443466,1.7205,1793.4,1793.3,1.1149]
[1745792443970,1.7205,1793.4,1793.3,2.816]
[1745792444161,1.7205,1793.4,1793.3,6.0238]
[1745792444365,1.11476,1793.6,1793.4,1.11482]
[1745792444565,9.3427,1793.7,1793.6,1.11471]
[1745792444864,5.888,1793.7,1793.6,1.11471]
[1745792445266,5.888,1793.7,1793.6,2.81581]
[1745792447166,6.5973,1793.9,1793.8,1.11459]
[1745792447372,1.6363,1793.9,1793.8,1.11459]
[1745792448173,1.6363,1793.9,1793.4,2.798]
[1745792448174,1.11473,1793.6,1793.4,2.798]
[1745792448373,3.2078,1793.7,1793.3,3.4112]
[1745792448572,1.6323,1793.6,1793.3,3.4112]
[1745792448773,1.6323,1793.6,1793.2,3.796]
[1745792448774,3.2078,1793.4,1793.2,3.796]
[1745792448976,3.4444,1793.3,1793.2,3.796]
[1745792449278,4.5593,1793.3,1793.2,3.796]
[1745792449570,7.5889,1793.5,1793.2,12.0038]
[1745792449776,10.7967,1793.5,1793.2,3.796]
[1745792449974,1.1149,1793.3,1793.2,3.796]
[1745792450472,2.7795,1793.3,1793.2,3.796]
[1745792450774,1.6646,1793.3,1793.2,3.796]
[1745792451376,2.7795,1793.3,1793.2,3.796]
[1745792451681,1.6646,1793.3,1793.2,3.796]
[1745792452074,1.11502,1793.1,1793.0,3.2078]
[1745792452269,1.11521,1792.8,1792.6,10.54497771]
[1745792452468,5.99545,1793.1,1792.6,7.33717771]
[1745792452469,1.11527,1792.7,1792.6,7.33717771]
[1745792453176,1.1154,1792.5,1792.4,5.5374]
[1745792453376,1.1154,1792.5,1792.4,3.796]
[1745792453572,1.11546,1792.4,1792.3,3.2078]
[1745792454579,2.76366,1792.4,1792.3,3.2078]
[1745792454776,2.78884,1792.3,1792.0,7.33717771]
[1745792455076,1.11565,1792.1,1792.0,7.33717771]
[1745792455580,10.21145,1792.1,1792.0,7.33717771]
[1745792455780,11.96995,1792.1,1792.0,7.33717771]
[1745792456383,16.96995,1792.1,1792.0,7.33717771]
[1745792456778,1.11571,1792.0,1791.9,2.92706525]
[1745792456990,8.67031,1792.0,1791.9,2.92706525]
[1745792457181,13.67031,1792.0,1791.9,2.92706525]
[1745792457679,1.11588,1791.8,1791.6,1.11596]
[1745792457882,2.7825,1791.7,1791.5,1.11598]
[1745792458181,7.5546,1791.7,1791.6,1.11596]
[1745792461085,7.5546,1791.7,1791.4,4.8541]
[1745792461284,3.2078,1791.5,1791.2,3.797]
[1745792461482,3.2078,1791.3,1790.8,3.2078]
[1745792461677,1.11628,1791.1,1790.8,4.32421]
[1745792461889,1.7588,1791.0,1790.8,4.32421]
[1745792462182,7.6468,1791.0,1790.8,3.2078]
[1745792462681,8.76314,1791.0,1790.8,3.2078]
[1745792463073,7.6468,1791.0,1790.9,1.11639]
[1745792463487,7.6468,1791.0,1790.8,6.06241]
[1745792463993,7.6468,1791.0,1790.9,1.11639]
[1745792464182,5.888,1791.3,1791.2,1.11621]
[1745792464378,7.0041,1791.4,1791.0,3.2078]
[1745792464582,7.6468,1791.4,1791.2,1.11615]
[1745792465091,7.6468,1791.4,1791.3,1.11615]
[1745792465291,7.6468,1791.4,1791.1,1.7382]
[1745792465788,7.6468,1791.4,1791.2,1.11621]
[1745792465986,1.11617,1791.3,1791.1,2.85446]
[1745792466186,1.7048,1791.3,1791.2,2.82891]
[1745792466482,1.11624,1791.2,1790.7,3.799]
[1745792466685,4.9126,1791.1,1791.0,1.11633]
[1745792468194,6.02887,1791.1,1790.9,1.11637]
[1745792468393,4.9126,1791.1,1790.9,1.11637]
[1745792468584,6.02887,1791.1,1790.9,1.11637]
[1745792468788,4.9126,1791.1,1791.0,1.11633]
[1745792468989,1.7048,1791.1,1791.0,1.11633]
[1745792469386,1.8029,1791.2,1791.1,1.11627]
[1745792469581,7.6909,1791.2,1791.1,1.11627]
[1745792470097,3.2078,1791.7,1791.2,2.79053]
[1745792470388,1.6977,1791.7,1791.5,1.11597]
[1745792470686,1.6977,1791.7,1791.4,1.11608]
[1745792470892,1.11596,1791.6,1791.4,2.77628]
[1745792471186,1.11599,1791.6,1791.4,2.77626]
[1745792471579,1.11599,1791.6,1791.4,1.11606]
[1745792471790,1.11608,1791.4,1790.9,9.79879]
[1745792472096,10.21187,1791.5,1791.3,1.11612]
[1745792472388,9.0958,1791.5,1791.4,1.11608]
[1745792472795,3.2078,1791.5,1791.4,1.11608]
[1745792472993,4.43072,1791.7,1791.5,1.11599]
[1745792473286,3.3148,1791.7,1791.6,1.11596]
[1745792473488,1.6822,1791.7,1791.6,1.11596]
[1745792473886,2.7981,1791.7,1791.6,1.11596]
[1745792474293,1.6822,1791.7,1791.6,1.11596]
[1745792474787,2.7981,1791.7,1791.6,1.11596]
[1745792474999,1.116,1791.6,1791.4,1.7438]
[1745792475289,1.116,1791.6,1791.4,2.85983]
[1745792475496,1.116,1791.6,1791.5,1.11602]
[1745792476384,1.11597,1791.6,1791.5,1.116]
[1745792477578,10.99772,1791.6,1790.9,5.99869]
[1745792477783,3.2078,1791.4,1791.3,1.11614]
[1745792477997,10.21177,1791.6,1791.5,1.11602]
[1745792478585,9.0958,1791.6,1791.5,1.11602]
[1745792478891,10.21176,1791.6,1791.5,1.11602]
[1745792479297,9.0958,1791.6,1791.5,1.11602]
[1745792479511,8.64997,1792.1,1791.7,2.78975]
[1745792479792,7.5343,1792.1,1791.8,2.84559]
[1745792479993,1.11577,1791.9,1791.8,1.7298]
[1745792480386,3.2078,1792.0,1791.5,7.0078]
[1745792480593,1.11579,1791.9,1791.8,1.1158]
[1745792481294,4.8353,1792.0,1791.7,1.11584]
[1745792481488,4.8353,1792.0,1791.6,1.6286]
[1745792481489,1.1159,1791.7,1791.6,2.74452]
[1745792481688,1.1159,1791.7,1791.5,3.2078]
[1745792481895,1.11596,1791.6,1791.5,4.32379]
[1745792482490,4.32365,1791.8,1791.5,3.2078]
[1745792482788,4.32365,1791.8,1791.5,4.8364]
[1745792482989,7.0078,1792.0,1791.9,1.11577]
[1745792483195,3.2078,1792.0,1791.9,1.11577]
[1745792483393,1.6463,1792.1,1792.0,1.11571]
[1745792484088,3.2078,1792.2,1791.8,6.18206]